Cogmind - Beta 15 @@@ ROGUE MODE // 2025.08.28 @ 17:31:20 Player: star Result: Destroyed by Y-45 Defender with Beam Rifle Performance ------------- Evolutions (0) 0 Regions Visited (4) 800 Robots Destroyed (14) 70 Value Destroyed (359) 359 Prototype IDs (0) 0 Alien Tech Used (0) 0 Bonus (0) 0 TOTAL SCORE: 1229 Bonus ------- None Cogmind --------- Core Integrity 0/250 Matter 300/300 Energy 100/100 System Corruption 0% Temperature Cool (9) Movement Core (200) Ox3 Location -8/Recycling Parts ------- > --- POWER (1) -------- (None) > --- PROPULSION (2) --- (None) > --- UTILITY (2) ------ Medium Storage Unit Targeting Computer > --- WEAPON (2) ------- (None) > --- INVENTORY (10) --- Ion Engine Subdweller Power Source Small Storage Unit Subdweller Optics Terrain Scanner Targeting Computer Scrap Shield Hacking Suite Light Assault Rifle Peak State ------------ > --- POWER ------------ Improved Ion Engine > --- PROPULSION ------- Subdweller Monowheel Subdweller Monowheel > --- UTILITY ---------- Medium Storage Unit Targeting Computer > --- WEAPON ----------- Particle Gun Assault Rifle > --- INVENTORY -------- Ion Engine Subdweller Power Source Small Storage Unit Subdweller Optics Terrain Scanner Targeting Computer Scrap Shield Hacking Suite Light Assault Rifle [Rating: 12] Favorites ----------- Power Improved Ion Engine Engine Improved Ion Engine Propulsion Aluminum Leg Leg Aluminum Leg Wheel Subdweller Monowheel Utility Medium Storage Unit Device Terrain Scanner Storage Medium Storage Unit Processor Targeting Computer Weapon Particle Gun Energy Gun Particle Gun Ballistic Gun Light Assault Rifle Build | -11 -10 -10 -10 -8 ------- Run | Yrd Mat Min Sub Rec Slots Evolved . | . . . . . Power . | . . . . . Propulsion . | . . . . . Utility . | . . . . . Weapon . | . . . . . Parts Attached 16 | 6 1 6 3 . Power 2 | 1 . 1 . . Engine 2 | 1 . 1 . . Core . | . . . . . Reactor . | . . . . . Propulsion 5 | 2 . 1 2 . Treads . | . . . . . Leg 3 | 2 . 1 . . Wheel 2 | . . . 2 . Hover . | . . . . . Flight . | . . . . . Utility 4 | 1 1 2 . . Device 1 | . 1 . . . Storage 2 | 1 . 1 . . Processor 1 | . . 1 . . Hackware . | . . . . . Protection . | . . . . . Artifact . | . . . . . Weapon 5 | 2 . 2 1 . Energy Gun 3 | 1 . 2 . . Energy Cannon . | . . . . . Ballistic Gun 2 | 1 . . 1 . Ballistic Cannon . | . . . . . Launcher . | . . . . . Special Weapon . | . . . . . Impact Weapon . | . . . . . Slashing Weapon . | . . . . . Piercing Weapon . | . . . . . Special Melee Weapon . | . . . . . Unidentified Prototypes . | . . . . . Parts Lost 10 | . . 2 8 . Power 1 | . . . 1 . Propulsion 5 | . . 1 4 . Utility 1 | . . 1 . . Weapon 3 | . . . 3 . Highest Loss Streak 5 | . . 1 5 . To Critical Strikes . | . . . . . Average Backups 7 | 1 3 7 8 9 Power 1 | . 1 1 1 2 Propulsion . | . . . . . Utility 4 | . 1 3 5 6 Weapon 2 | . 1 3 1 1 Tool/Special . | . . . . . Unused Backups 10 | . . 4 . 6 Power 2 | . . 1 . 1 Propulsion . | . . . . . Utility 5 | . . . . 5 Weapon 3 | . . 3 . . Tool/Special . | . . . . . Average Slot Usage (%) 93 | . 89 97 92 28 Engine 13 | . 14 14 13 . Leg 20 | . 28 27 16 . Wheel 2 | . . . 5 . Device 3 | . 3 11 . . Storage 14 | . 14 14 14 14 Processor 8 | . . 1 14 14 Energy Gun 19 | . 14 15 22 . Ballistic Gun 8 | . 14 12 5 . Peak Build Rating 12 | 6 7 11 12 3 Average Rating 8 | 4 6 7 10 3 On Entrance 5 | . 6 7 10 3 Naked Turns . | . . . . . Heaviest Build 23 | 12 13 23 23 10 Greatest Support 20 | 20 20 20 20 3 Greatest Overweight (x) 7 | 1 . 1 7 3 Average Overweight (x) . | . . . 1 3 Largest Inventory Capacity 10 | 8 8 10 10 10 Average Capacity 9 | 7 8 9 10 10 Most Carried 10 | 2 4 10 10 10 Average Carried 7 | 1 3 7 9 10 Final Capacity 10 | 8 8 10 10 10 Final Carried 10 | 2 4 7 10 10 Class Distribution -------------------- 64% | Mutant 35% | Scavenger-Mutant Dominant Class ---------------- Mutant | -10/Materials Mutant | -10/Mines Scavenger-Mutant | -10/Subcaves Scavenger-Mutant | -8/Recycling Resources | -11 -10 -10 -10 -8 ----------- Run | Yrd Mat Min Sub Rec Matter Collected 417 | 241 39 87 50 . Remotely . | . . . . . Salvage Created 433 | . 70 283 80 . Parts 26 | . 3 15 8 . Haulers Intercepted 1 | . 1 . . . Recyclers Shooed . | . . . . . Parts Field Recycled . | . . . . . Retrieved Matter . | . . . . . Parts Self-Destructed 4 | . . . 4 . Prevented . | . . . . . Kills | -11 -10 -10 -10 -8 ------- Run | Yrd Mat Min Sub Rec Combat Hostiles Destroyed 12 | . . 9 3 . Guns 11 | . . 9 2 . Classes Destroyed 6 | . 2 3 1 . Hauler 1 | . 1 . . . Operator 1 | . 1 . . . Swarmer 5 | . . 5 . . Grunt 2 | . . 2 . . Sentry 2 | . . 2 . . Subdweller 3 | . . . 3 . Best Kill Streak 3 | . 1 3 1 . Combat Bots Only 3 | . . 3 1 . Max Kills in Single Turn 1 | . 1 1 1 . Gunslinging . | . . . . . Exploded . | . . . . . Melee . | . . . . . Uniques/NPCs Destroyed . | . . . . . Combat | -11 -10 -10 -10 -8 -------- Run | Yrd Mat Min Sub Rec Hostile Shots Fired 139 | . . 52 86 1 Missed 36 | . . 17 19 . Hits 103 | . . 35 67 1 Projectile 103 | . . 35 67 1 Critical Strikes 3 | . . 2 1 . Damage Taken 1145 | . . 388 743 14 Core 254 | . . 25 215 14 Absorbed by Shields . | . . . . . Core Remaining (%) 100 | 100 . . . . Volleys Fired 58 | . 10 24 24 . Largest 2 | . 2 2 2 . Hottest 121 | . 60 85 121 . Shots Fired 116 | . 20 48 48 . Gun 116 | . 20 48 48 . Cannon . | . . . . . Launcher . | . . . . . Special . | . . . . . Kinetic 44 | . 10 24 10 . Thermal 72 | . 10 24 38 . Explosive . | . . . . . Electromagnetic . | . . . . . Robot Hit Streak 21 | . 8 15 21 . Robot Miss Streak 2 | . 1 2 1 . Penetration Max . | . . . . . Secondary Targets 2 | . . 2 . . Max Gunslinging Chain 1 | . . 1 . . Shots Hit Robots 85 | . 17 35 33 . Core Hits 24 | . 4 16 4 . Critical Kills . | . . . . . Critical Parts Destroyed . | . . . . . Critical Strikes 2 | . . . 2 . Burn 2 | . . . 2 . Melee Attacks . | . . . . . Impact . | . . . . . Slashing . | . . . . . Piercing . | . . . . . Sneak Attacks . | . . . . . Combat Hostiles . | . . . . . Follow-up Attacks . | . . . . . Damage Inflicted 853 | . 161 382 310 . Guns 853 | . 161 382 310 . Cannons . | . . . . . Explosions . | . . . . . Melee . | . . . . . Ramming . | . . . . . Kinetic 256 | . 72 143 41 . Thermal 597 | . 89 239 269 . Explosive . | . . . . . Electromagnetic . | . . . . . Impact . | . . . . . Slashing . | . . . . . Piercing . | . . . . . Highest Corruption . | . . . . . Average Corruption . | . . . . . Corruption Purged . | . . . . . Corruption Blocked . | . . . . . Overload Shots . | . . . . . Overflow Damage . | . . . . . Projectiles . | . . . . . Explosions . | . . . . . Melee . | . . . . . Knockbacks . | . . . . . Impact . | . . . . . Kinetic . | . . . . . Secondary . | . . . . . Self-Inflicted Damage . | . . . . . Shots . | . . . . . Rammed 1 | . . . 1 . Targets Rammed 1 | . . . 1 . Kicked . | . . . . . Crushed . | . . . . . Highest Temperature 220 | . 40 220 69 . Average Temperature 48 | . 16 72 22 . Received Heat Transfer 273 | . . 120 144 9 Siege Activations . | . . . . . Martial Activations . | . . . . . Shielding Activations . | . . . . . Robots Disrupted . | . . . . . Combat Hostiles . | . . . . . Robots Corrupted . | . . . . . Combat Hostiles . | . . . . . Parts Fried . | . . . . . Impact Corruptions . | . . . . . Robots Melted 1 | . . . 1 . Combat Hostiles 1 | . . . 1 . Parts Melted 1 | . . 1 . . Heat Transferred 1574 | . 200 560 814 . Parts Sabotaged . | . . . . . Parts Stolen . | . . . . . Parts Stripped . | . . . . . Power Chain Reactions . | . . . . . Alert | -11 -10 -10 -10 -8 ------- Run | Yrd Mat Min Sub Rec Maximum Alert Level . | . . . . . Low Security (%) 100 | 100 100 100 . 100 Level 1 . | . . . . . Level 2 . | . . . . . Level 3 . | . . . . . Level 4 . | . . . . . Level 5 . | . . . . . High Security . | . . . . . Max Security . | . . . . . Peak Influence 70 | . 13 70 . . Initial . | . . . . . Average 22 | . 1 30 . . Influence Increases 218 | . 18 200 . . Destroy 0b10 Robot/C 180 | . . 180 . . Destroy 0b10 Robot/NC 10 | . 10 . . . Destroy Leader 22 | . 2 20 . . Successful Hack 6 | . 6 . . . Influence Decreases 218 | . 18 178 22 . Entered New Map 12 | . . . 12 . Time Decay 186 | . 18 158 10 . Lost Part 20 | . . 20 . . Squads Dispatched . | . . . . . Investigation . | . . . . . Extermination . | . . . . . Reinforcement . | . . . . . Assault . | . . . . . Garrison . | . . . . . Intercept . | . . . . . Searches Triggered . | . . . . . Construction Impeded . | . . . . . Haulers Reinforced . | . . . . . Active Scanning Responses . | . . . . . Cargo Convoy Interrupts . | . . . . . Stealth | -11 -10 -10 -10 -8 --------- Run | Yrd Mat Min Sub Rec Distress Signals . | . . . . . Communications Jammed . | . . . . . Distress Signals . | . . . . . Times Spotted 20 | . 2 9 8 1 Peak Tracking Total 5 | . 2 3 5 1 Tactical Retreats . | . . . . . Traps | -11 -10 -10 -10 -8 ------- Run | Yrd Mat Min Sub Rec Traps Triggered . | . . . . . Indirectly . | . . . . . Trap Hack Attempts . | . . . . . Triggered . | . . . . . Disarmed . | . . . . . Reprogrammed . | . . . . . Reused . | . . . . . Traps Extracted . | . . . . . Installed . | . . . . . Triggered . | . . . . . Machines | -11 -10 -10 -10 -8 ---------- Run | Yrd Mat Min Sub Rec Machines Disabled . | . . . . . Max in Single Turn . | . . . . . Machines Repaired . | . . . . . Machines Dismantled . | . . . . . Machines Sabotaged . | . . . . . Overloaded Fab Kills . | . . . . . Hacking | -11 -10 -10 -10 -8 --------- Run | Yrd Mat Min Sub Rec Machines Accessed 1 | . 1 . . . Terminals 1 | . 1 . . . Fabricators . | . . . . . Repair Stations . | . . . . . Recycling Units . | . . . . . Scanalyzers . | . . . . . Garrison Access . | . . . . . Total Hacks 1 | . 1 . . . Successful 1 | . 1 . . . Failed . | . . . . . Catastrophic . | . . . . . Database Lockouts . | . . . . . Manual 1 | . 1 . . . Terminals 1 | . 1 . . . Fabricators . | . . . . . Repair Stations . | . . . . . Recycling Units . | . . . . . Scanalyzers . | . . . . . Garrison Access . | . . . . . Terminal Hacks 1 | . 1 . . . Hauler Manifests 1 | . 1 . . . Fabricator Hacks . | . . . . . Repair Station Hacks . | . . . . . Recycling Unit Hacks . | . . . . . Scanalyzer . | . . . . . Garrison Access Hacks . | . . . . . Unauthorized Hacks . | . . . . . Terminals . | . . . . . Fabricators . | . . . . . Repair Stations . | . . . . . Recycling Units . | . . . . . Scanalyzers . | . . . . . Garrison Access . | . . . . . Data Cores Recovered 1 | . 1 . . . Used . | . . . . . Hacking Detections . | . . . . . Full Trace Events . | . . . . . Feedback Events . | . . . . . Feedback Blocked . | . . . . . Robot Schematics Acquired . | . . . . . Robots Built . | . . . . . Authchips . | . . . . . Time . | . . . . . Total Robot Build Rating . | . . . . . Part Schematics Acquired . | . . . . . Parts Built . | . . . . . Authchips . | . . . . . Time . | . . . . . Total Part Build Rating . | . . . . . Parts Repaired . | . . . . . Time . | . . . . . Parts Recycled . | . . . . . Recycled Matter . | . . . . . Retrieved Matter . | . . . . . Retrieved Components . | . . . . . Parts Scanalyzed . | . . . . . Part Schematics Acquired . | . . . . . Parts Damaged . | . . . . . Bothacking | -11 -10 -10 -10 -8 ------------ Run | Yrd Mat Min Sub Rec Used RIF Installer . | . . . . . Robots Hacked . | . . . . . Non-combat . | . . . . . Combat . | . . . . . Robot Hacks Applied . | . . . . . Relay Couplers Released . | . . . . . Fabnet Peak Effective % . | . . . . . Robots Rewired . | . . . . . Allies Hacked . | . . . . . Hacks Repelled . | . . . . . Allies | -11 -10 -10 -10 -8 -------- Run | Yrd Mat Min Sub Rec Total Allies . | . . . . . Largest Group . | . . . . . Highest-Rated Group . | . . . . . Highest-Rated Ally . | . . . . . Total Orders . | . . . . . Ally Attacks . | . . . . . Total Damage . | . . . . . Kills . | . . . . . Allies Corrupted . | . . . . . Allies Melted . | . . . . . Intel | -11 -10 -10 -10 -8 ------- Run | Yrd Mat Min Sub Rec Active Infowar (turns) 367 | . 33 334 . . Terrain 367 | . 33 334 . . Robot Analysis Total . | . . . . . Derelict Logs Recovered 1 | . . 1 . . Drone Launches . | . . . . . Drone Recoveries . | . . . . . Exploration | -11 -10 -10 -10 -8 ------------- Run | Yrd Mat Min Sub Rec Turns Passed 1377 | 57 97 416 801 6 Spaces Moved 706 | 37 54 249 364 2 Core 50 | 5 . . 43 2 Treads . | . . . . . Legs 566 | 32 54 249 231 . Wheels 90 | . . . 90 . Hover . | . . . . . Flight . | . . . . . Fastest Speed 50 | 50 120 120 120 200 Average Speed 164 | 127 120 130 197 200 Slowest Speed 400 | 190 120 190 400 200 Overloaded Moves . | . . . . . Propulsion Burnouts . | . . . . . Robots Hopped . | . . . . . Potential Cave-ins . | . . . . . Cave-ins Triggered . | . . . . . Exploration Rate (%) 22 | 3 12 61 29 6 Regions Visited 4 Branch Regions 3 Pre-discovered Areas . | . . . . . Known Exits Taken . | . . . . . Unknown Exits Taken 4 | 1 1 1 1 . Scrap Searched 1 | . . 1 . . Spaces Dug . | . . . . . Terrain Destroyed . | . . . . . Melee . | . . . . . Projectile . | . . . . . AOE . | . . . . . Terrain Rammed . | . . . . . Walls Destroyed . | . . . . . Machines Disabled . | . . . . . Actions | -11 -10 -10 -10 -8 --------- Run | Yrd Mat Min Sub Rec Total 810 | 44 67 297 397 5 Wait 15 | . 1 8 3 3 Move 702 | 36 53 248 363 2 Hop . | . . . . . Pick Up 12 | 2 2 5 3 . Fast Attach 11 | 6 1 2 2 . Attach 1 | . . . 1 . Detach . | . . . . . Swap 5 | . . 5 . . Drop 5 | . . 5 . . Fire 58 | . 10 24 24 . Melee . | . . . . . Ram 1 | . . . 1 . Kick . | . . . . . Crush . | . . . . . Escape Stasis . | . . . . . Rewire . | . . . . . Trap . | . . . . . Miscellaneous . | . . . . . Route ------- -11/Scrapyard -10/Materials -10/Mines -10/Subcaves -8/Recycling History --------- Turn | Location | Event 20 | -11/Scrapyard | Discovered new exit (range 16) 58 | -11/Scrapyard | Entered Materials 73 | -10/Materials | Discovered new exit (range 15) 155 | -10/Materials | Entered Mines 177 | -10/Mines | Met a Derelict bent on vengeance 317 | -10/Mines | Build established: Mutant 561 | -10/Mines | Discovered new exit (range 7) 571 | -10/Mines | Entered Subcaves 572 | -10/Subcaves | A swath of the cavern ceiling suddenly collapsed 813 | -10/Subcaves | Shifting Twisted Machinery released Barrage Gun 820 | -10/Subcaves | Build established: Scavenger-Mutant 1081 | -10/Subcaves | Core integrity fell below 50% 1307 | -10/Subcaves | Build established: Mutant 1353 | -10/Subcaves | Discovered new exit (range 11) 1368 | -10/Subcaves | Core integrity fell below 20% 1372 | -10/Subcaves | Entered Recycling 1373 | -8/Recycling | Met a Zionite searching for Scraptown 1378 | -8/Recycling | Destroyed by Y-45 Defender with Beam Rifle Last Messages --------------- 01353_ EXIT=FOUND 01356_ Slammed into S-10 Pest. 01360_ Sub. Monowheel destroyed. 01362_ S-10 Pest destroyed. 01364_ Assault Rifle destroyed. 01364_ Particle Gun destroyed. 01364_ Broken Sub. Monowheel destroyed. 01365_ Imp. Ion Engine destroyed. 01368_ Flight Unit fries itself beyond repair. LOCATION=UNKNOWN GOAL=ESCAPE 01373_ 6B-SE2(z): "You there! You wouldn't happen to know where Scraptown is, do you?" 01374_ 6B-SE2(z): "I've heard great things about that place, but almost no one seems to know where to find it, only that you access it somewhere from Recycling here." 01375_ 6B-SE2(z): "Anyway I've been here searching too long already, time to slink back to the caves before I'm caught. You'd best do the same." 01375_ 6B-SE2(z) destroyed. 01375_ Material Compactor disabled. Map ----- +----------------------------------------------------+ | ?????????????????????????????????????????????????? | | ?????????????????????????????????????????????????? | | ?????????????????????????????????????????????????? | | ?????????????????????????????????????????????????? | | ?????????????????????????????????????????????????? | | ?????????????????????????????????????????????????? | | ?????????????????????????????????????????????????? | | ?????????????????????????????????????????????????? | | ?????????????????????????????????????????????????? | | ?????????????????????????????????????????????????? | | ?????????????????????????? ????????????????????? | | ?????????????????????????? +???????????????????? | | ?????????????????????????? #???????????????????? | | ?????????????????????????# #???????????????????? | | ???????????????????????### #???????????????????? | | ?????????????? ???????? #???????????????????? | | ????????????? ??????? #???????????????????? | | ????????????? ????""" #???????????????????? | | ???????????? """"" #???????????????????? | | ???????????? """"" #???????????????????? | | ?????????????" """"" #???????????????????? | | ????????????"T "" #???????????????????? | | ??????????? "" #???????????????????? | | ?????????? ! #???????????????????? | | ?????????? %! #???????????????????? | | ?????????????????# @ #???????????????????? | | ?????????????????# #???????????????????? | | ?????????????????# #####???????????????????? | | ?????????????????# ????????????????????????? | | ?????????????????# ????????????????????????? | | ?????????????????# ????????????????????????? | | ?????????????????# ?????????????????????????? | | ?????????????????# ?????????????????????????? | | ?????????????????+ Y ?????????????????????????? | | ?????????????????##### #?????????????????????????? | | ?????????????????????##??????????????????????????? | | ?????????????????????????????????????????????????? | | ?????????????????????????????????????????????????? | | ?????????????????????????????????????????????????? | | | | | | | | | | | | | | | | | | | | | | | +----------------------------------------------------+ Best States ------------- Heat Dissipation 25 Energy Generation 12 Energy Capacity 265 Matter Stores 300 Matter Capacity 300 Sight Range 16 Terrain Scan Range 14 Terrain Scan Density 10 Evasion (%) 55 Targeting Accuracy 5 Item Schematics ----------------- None Robot Schematics ------------------ None Fabricated ------------ Nothing Repaired ---------- Nothing Alien Tech Used ----------------- None Achievements -------------- None Challenges ------------ None Game ------ Seed FocalSigixMultirail Manual? 0 Play Time 00:07:16 Cumulative 155.5 hours Start 2025.08.28 @ 11:01:57 End 2025.08.28 @ 17:31:20 Sessions 1 Manual Loads 0 Difficulty Rogue Special Mode None Game No. 266 Rogue 266 Adventurer 0 Explorer 0 Win Type - Total 1 Types 1/0/0/0/0/0/0/0/0/0 Lore% 53 Gallery% 58 Achievement% 49 Wizard Run 0 Options --------- Layout 0 ASCII 0 Keyboard 1 Movement Numpad Keybinds 0 Fullscreen 2 Font 18/SmallcapsGlow Map View 76x50 Zoom Use 0% Tactical HUD 1 Map Filters NONE Filters NONE Steam 1 RUN: 205c0022-fd68-428f-ab64-6f91947d5163